[Event "Titled Tuesday Blitz September 27 Early 2022"]
[White "Hristodoulou, Panagiotis"]
[Black "Makhnev, Denis"]
[WhiteFideId "4214340"]
[BlackFideId "13707647"]
[WhiteElo "2172"]
[BlackElo "2486"]
[Result "1/2-1/2"]
[Round "11"]
[TimeControl "180+1"]
[Date "2022.09.27"]
[WhiteClock "0:01:09"]
[BlackClock "0:00:14"]

1. e4 {[%clk 0:03:00]}  c6 {[%clk 0:02:59]} 2. d4 {[%clk 0:03:00]}  d5 {[%clk 0:03:00]} 3. e5 {[%clk 0:03:01]}  Bf5 {[%clk 0:03:00]} 4. Nf3 {[%clk 0:03:01]}  e6 {[%clk 0:03:00]} 5. Be2 {[%clk 0:03:02]}  c5 {[%clk 0:03:00]} 6. O-O {[%clk 0:03:01]}  Nc6 {[%clk 0:03:00]} 7. Be3 {[%clk 0:03:01]}  cxd4 {[%clk 0:02:56]} 8. Nxd4 {[%clk 0:03:01]}  Nge7 {[%clk 0:02:56]} 9. c4 {[%clk 0:03:00]}  Nxd4 {[%clk 0:02:51]} 10. Bxd4 {[%clk 0:02:59]}  Nc6 {[%clk 0:02:51]} 11. cxd5 {[%clk 0:02:57]}  Qxd5 {[%clk 0:02:51]} 12. Bf3 {[%clk 0:02:57]}  Qd7 {[%clk 0:02:50]} 13. Bc3 {[%clk 0:02:52]}  Bc5 {[%clk 0:02:43]} 14. Qxd7+ {[%clk 0:02:51]}  Kxd7 {[%clk 0:02:44]} 15. Nd2 {[%clk 0:02:50]}  Nd4 {[%clk 0:02:30]} 16. Bxb7 {[%clk 0:02:47]}  Ne2+ {[%clk 0:02:27]} 17. Kh1 {[%clk 0:02:47]}  Rab8 {[%clk 0:02:27]} 18. Be4 {[%clk 0:02:47]}  Nxc3 {[%clk 0:02:26]} 19. bxc3 {[%clk 0:02:46]}  Rhc8 {[%clk 0:02:12]} 20. Bxf5 {[%clk 0:02:43]}  exf5 {[%clk 0:02:13]} 21. Nb3 {[%clk 0:02:43]}  Ba3 {[%clk 0:02:09]} 22. Rad1+ {[%clk 0:02:42]}  Ke7 {[%clk 0:02:05]} 23. Rd3 {[%clk 0:02:41]}  g6 {[%clk 0:02:05]} 24. g3 {[%clk 0:02:40]}  Rc4 {[%clk 0:02:05]} 25. Rfd1 {[%clk 0:02:40]}  Rb7 {[%clk 0:02:05]} 26. Kg2 {[%clk 0:02:38]}  Rbc7 {[%clk 0:02:05]} 27. Nd4 {[%clk 0:02:27]}  a6 {[%clk 0:02:05]} 28. e6 {[%clk 0:02:22]}  Rxc3 {[%clk 0:02:01]} 29. exf7 {[%clk 0:02:22]}  Kxf7 {[%clk 0:02:01]} 30. Nf3 {[%clk 0:02:21]}  Rxd3 {[%clk 0:01:55]} 31. Rxd3 {[%clk 0:02:22]}  Be7 {[%clk 0:01:56]} 32. Ne5+ {[%clk 0:02:16]}  Ke6 {[%clk 0:01:55]} 33. Nf3 {[%clk 0:02:14]}  Rc4 {[%clk 0:01:46]} 34. Nd4+ {[%clk 0:02:13]}  Kf6 {[%clk 0:01:46]} 35. Kf3 {[%clk 0:02:11]}  Ra4 {[%clk 0:01:34]} 36. Rd2 {[%clk 0:02:10]}  Rc4 {[%clk 0:00:53]} 37. Nb3 {[%clk 0:02:05]}  Bb4 {[%clk 0:00:48]} 38. Rd4 {[%clk 0:02:03]}  Rc3+ {[%clk 0:00:49]} 39. Kg2 {[%clk 0:01:58]}  a5 {[%clk 0:00:49]} 40. Kf1 {[%clk 0:01:41]}  Rc2 {[%clk 0:00:47]} 41. a3 {[%clk 0:01:40]}  Bxa3 {[%clk 0:00:45]} 42. Nxa5 {[%clk 0:01:36]}  Bc5 {[%clk 0:00:45]} 43. Rf4 {[%clk 0:01:36]}  g5 {[%clk 0:00:31]} 44. Rf3 {[%clk 0:01:35]}  g4 {[%clk 0:00:31]} 45. Rf4 {[%clk 0:01:34]}  Bd6 {[%clk 0:00:29]} 46. Rc4 {[%clk 0:01:32]}  Ra2 {[%clk 0:00:29]} 47. Nb3 {[%clk 0:01:31]}  Rb2 {[%clk 0:00:20]} 48. Nd4 {[%clk 0:01:28]}  Rd2 {[%clk 0:00:20]} 49. Ne2 {[%clk 0:01:21]}  h5 {[%clk 0:00:20]} 50. Nf4 {[%clk 0:01:16]}  h4 {[%clk 0:00:20]} 51. gxh4 {[%clk 0:01:15]}  Ra2 {[%clk 0:00:19]} 52. Kg2 {[%clk 0:01:15]}  Bxf4 {[%clk 0:00:17]} 53. Rxf4 {[%clk 0:01:14]}  Ra3 {[%clk 0:00:18]} 54. Rb4 {[%clk 0:01:09]}  Rh3 {[%clk 0:00:18]} 55. Rb6+ {[%clk 0:01:09]}  Kg7 {[%clk 0:00:17]} 56. Rb5 {[%clk 0:01:09]}  Kg6 {[%clk 0:00:18]} 57. Rb6+ {[%clk 0:01:09]}  Kg7 {[%clk 0:00:15]} 58. Rb5 {[%clk 0:01:09]}  Kg6 {[%clk 0:00:14]} 59. Rb6+ {[%clk 0:01:09]}  Kg7 {[%clk 0:00:14]} 1/2-1/2


[Site "https://www.chess.com"]

[Event "Titled Tuesday Blitz September 27 Early 2022"]
[White "Kislov, Oleg"]
[Black "Arabidze, Meri"]
[WhiteFideId "13503774"]
[BlackFideId "13604040"]
[WhiteElo "2185"]
[BlackElo "2335"]
[Result "1-0"]
[Round "11"]
[TimeControl "180+1"]
[Date "2022.09.27"]
[WhiteClock "0:01:11"]
[BlackClock "0:00:55"]

1. e4 {[%clk 0:02:58]}  c5 {[%clk 0:02:59]} 2. Nf3 {[%clk 0:02:58]}  e6 {[%clk 0:02:59]} 3. c3 {[%clk 0:02:58]}  d5 {[%clk 0:02:58]} 4. exd5 {[%clk 0:02:58]}  exd5 {[%clk 0:02:58]} 5. d4 {[%clk 0:02:56]}  Nc6 {[%clk 0:02:59]} 6. Be2 {[%clk 0:02:50]}  c4 {[%clk 0:02:55]} 7. b3 {[%clk 0:02:47]}  cxb3 {[%clk 0:02:56]} 8. axb3 {[%clk 0:02:47]}  Bd6 {[%clk 0:02:56]} 9. O-O {[%clk 0:02:46]}  Nge7 {[%clk 0:02:55]} 10. Ba3 {[%clk 0:02:45]}  O-O {[%clk 0:02:55]} 11. Re1 {[%clk 0:02:30]}  Ng6 {[%clk 0:02:54]} 12. g3 {[%clk 0:02:23]}  Bg4 {[%clk 0:02:49]} 13. Nbd2 {[%clk 0:02:08]}  a6 {[%clk 0:02:49]} 14. Nf1 {[%clk 0:01:59]}  Bxa3 {[%clk 0:02:40]} 15. Rxa3 {[%clk 0:01:59]}  Re8 {[%clk 0:02:38]} 16. Ne3 {[%clk 0:01:58]}  Bh3 {[%clk 0:02:34]} 17. Bf1 {[%clk 0:01:55]}  Bxf1 {[%clk 0:02:30]} 18. Rxf1 {[%clk 0:01:53]}  h6 {[%clk 0:02:14]} 19. Re1 {[%clk 0:01:51]}  Qd7 {[%clk 0:02:13]} 20. Ra2 {[%clk 0:01:50]}  Re4 {[%clk 0:02:09]} 21. Qd3 {[%clk 0:01:37]}  Rae8 {[%clk 0:02:09]} 22. Rae2 {[%clk 0:01:33]}  b5 {[%clk 0:01:52]} 23. Nd2 {[%clk 0:01:28]}  R4e6 {[%clk 0:01:44]} 24. b4 {[%clk 0:01:28]}  Nce7 {[%clk 0:01:21]} 25. Nb3 {[%clk 0:01:28]}  Rf6 {[%clk 0:01:14]} 26. Nc5 {[%clk 0:01:20]}  Qh3 {[%clk 0:01:01]} 27. Nxd5 {[%clk 0:01:17]}  Nh4 {[%clk 0:00:55]} 28. Nxf6+ {[%clk 0:01:14]}  gxf6 {[%clk 0:00:55]} 29. gxh4 {[%clk 0:01:11]} 1-0


[Site "https://www.chess.com"]

[Event "Titled Tuesday Blitz September 27 Early 2022"]
[White "Kodinets, Konstantin L."]
[Black "Tasev, Dejan"]
[WhiteFideId "4122011"]
[BlackFideId "936618"]
[WhiteElo "2447"]
[BlackElo "2256"]
[Result "1-0"]
[Round "11"]
[TimeControl "180+1"]
[Date "2022.09.27"]
[WhiteClock "0:00:16"]
[BlackClock "0:00:18"]

1. d4 {[%clk 0:02:56]}  Nf6 {[%clk 0:02:59]} 2. Nf3 {[%clk 0:02:56]}  e6 {[%clk 0:02:59]} 3. Bg5 {[%clk 0:02:56]}  b6 {[%clk 0:02:59]} 4. Nbd2 {[%clk 0:02:56]}  h6 {[%clk 0:02:59]} 5. Bxf6 {[%clk 0:02:55]}  Qxf6 {[%clk 0:02:58]} 6. e4 {[%clk 0:02:56]}  Bb7 {[%clk 0:02:59]} 7. Bd3 {[%clk 0:02:57]}  g5 {[%clk 0:02:59]} 8. h3 {[%clk 0:02:56]}  d6 {[%clk 0:02:58]} 9. e5 {[%clk 0:02:56]}  Qe7 {[%clk 0:02:57]} 10. Qe2 {[%clk 0:02:56]}  a6 {[%clk 0:02:57]} 11. O-O-O {[%clk 0:02:55]}  Bg7 {[%clk 0:02:56]} 12. Kb1 {[%clk 0:02:54]}  Nd7 {[%clk 0:02:54]} 13. Rhe1 {[%clk 0:02:51]}  d5 {[%clk 0:02:47]} 14. c4 {[%clk 0:02:50]}  dxc4 {[%clk 0:02:41]} 15. Nxc4 {[%clk 0:02:48]}  Bd5 {[%clk 0:02:17]} 16. Be4 {[%clk 0:02:46]}  Bxe4+ {[%clk 0:02:01]} 17. Qxe4 {[%clk 0:02:46]}  O-O {[%clk 0:02:00]} 18. Ne3 {[%clk 0:02:17]}  b5 {[%clk 0:01:51]} 19. h4 {[%clk 0:02:12]}  f5 {[%clk 0:01:45]} 20. exf6 {[%clk 0:02:10]}  Nxf6 {[%clk 0:01:45]} 21. Qc6 {[%clk 0:02:06]}  Qd6 {[%clk 0:01:36]} 22. Qxd6 {[%clk 0:02:05]}  cxd6 {[%clk 0:01:37]} 23. hxg5 {[%clk 0:02:06]}  Ne4 {[%clk 0:01:37]} 24. Re2 {[%clk 0:01:52]}  Nxg5 {[%clk 0:01:36]} 25. Nxg5 {[%clk 0:01:50]}  hxg5 {[%clk 0:01:37]} 26. Ng4 {[%clk 0:01:50]}  Rae8 {[%clk 0:01:36]} 27. f3 {[%clk 0:01:45]}  Kf7 {[%clk 0:01:32]} 28. Kc2 {[%clk 0:01:41]}  Rc8+ {[%clk 0:01:31]} 29. Kd3 {[%clk 0:01:31]}  Rc4 {[%clk 0:01:29]} 30. Re4 {[%clk 0:01:31]}  Rfc8 {[%clk 0:01:14]} 31. Ne3 {[%clk 0:01:31]}  Ra4 {[%clk 0:01:05]} 32. a3 {[%clk 0:01:27]}  b4 {[%clk 0:01:01]} 33. d5 {[%clk 0:01:27]}  exd5 {[%clk 0:00:47]} 34. Nxd5 {[%clk 0:01:26]}  Bxb2 {[%clk 0:00:43]} 35. axb4 {[%clk 0:01:05]}  Ra3+ {[%clk 0:00:43]} 36. Ke2 {[%clk 0:01:05]}  Bg7 {[%clk 0:00:38]} 37. Re7+ {[%clk 0:00:58]}  Kf8 {[%clk 0:00:37]} 38. Rd7 {[%clk 0:00:48]}  Rc2+ {[%clk 0:00:37]} 39. Rd2 {[%clk 0:00:48]}  Rxd2+ {[%clk 0:00:34]} 40. Kxd2 {[%clk 0:00:48]}  Ra2+ {[%clk 0:00:35]} 41. Kd3 {[%clk 0:00:49]}  Rxg2 {[%clk 0:00:33]} 42. Rxd6 {[%clk 0:00:49]}  Rb2 {[%clk 0:00:33]} 43. Rxa6 {[%clk 0:00:45]}  Rb3+ {[%clk 0:00:28]} 44. Ke4 {[%clk 0:00:45]}  Rb1 {[%clk 0:00:27]} 45. Kf5 {[%clk 0:00:42]}  Rd1 {[%clk 0:00:25]} 46. Ra8+ {[%clk 0:00:40]}  Kf7 {[%clk 0:00:25]} 47. Ra7+ {[%clk 0:00:40]}  Kf8 {[%clk 0:00:25]} 48. Nc7 {[%clk 0:00:26]}  Kg8 {[%clk 0:00:22]} 49. Ne6 {[%clk 0:00:24]}  Bc3 {[%clk 0:00:22]} 50. Kg6 {[%clk 0:00:21]}  Ra1 {[%clk 0:00:20]} 51. Rxa1 {[%clk 0:00:18]}  Bxa1 {[%clk 0:00:20]} 52. b5 {[%clk 0:00:18]}  Be5 {[%clk 0:00:19]} 53. Kxg5 {[%clk 0:00:16]}  Kf7 {[%clk 0:00:19]} 54. Kf5 {[%clk 0:00:16]}  Bb8 {[%clk 0:00:19]} 55. Nd4 {[%clk 0:00:16]}  Ba7 {[%clk 0:00:18]} 56. Nc6 {[%clk 0:00:16]}  Bb6 {[%clk 0:00:18]} 57. Ke5 {[%clk 0:00:15]}  Kg6 {[%clk 0:00:18]} 58. f4 {[%clk 0:00:15]}  Kf7 {[%clk 0:00:19]} 59. f5 {[%clk 0:00:15]}  Bc7+ {[%clk 0:00:19]} 60. Ke4 {[%clk 0:00:14]}  Kf6 {[%clk 0:00:19]} 61. Nb4 {[%clk 0:00:15]}  Ba5 {[%clk 0:00:18]} 62. Nd5+ {[%clk 0:00:16]}  Kf7 {[%clk 0:00:18]} 63. b6 {[%clk 0:00:16]}  Ke8 {[%clk 0:00:18]} 64. b7 {[%clk 0:00:16]} 1-0


[Site "https://www.chess.com"]

[Event "Titled Tuesday Blitz September 27 Early 2022"]
[White "Kuchava, Ana"]
[Black "Guliev, Logman"]
[WhiteFideId "13605348"]
[BlackFideId "13400061"]
[WhiteElo "1955"]
[BlackElo "2128"]
[Result "1-0"]
[Round "11"]
[TimeControl "180+1"]
[Date "2022.09.27"]
[WhiteClock "0:00:09"]
[BlackClock "0:00:02"]

1. d4 {[%clk 0:03:00]}  d5 {[%clk 0:02:57]} 2. Nf3 {[%clk 0:02:58]}  e6 {[%clk 0:02:58]} 3. Bf4 {[%clk 0:02:52]}  Nf6 {[%clk 0:02:58]} 4. e3 {[%clk 0:02:51]}  Bd6 {[%clk 0:02:56]} 5. Bxd6 {[%clk 0:02:50]}  Qxd6 {[%clk 0:02:54]} 6. c4 {[%clk 0:02:42]}  dxc4 {[%clk 0:02:51]} 7. Qa4+ {[%clk 0:02:32]}  Nbd7 {[%clk 0:02:45]} 8. Qxc4 {[%clk 0:02:29]}  O-O {[%clk 0:02:45]} 9. Nc3 {[%clk 0:02:27]}  e5 {[%clk 0:02:45]} 10. Nb5 {[%clk 0:02:22]}  Qe7 {[%clk 0:02:35]} 11. Nxc7 {[%clk 0:02:10]}  Rb8 {[%clk 0:02:22]} 12. Be2 {[%clk 0:02:00]}  Nb6 {[%clk 0:02:01]} 13. Qc5 {[%clk 0:01:55]}  Qxc5 {[%clk 0:01:49]} 14. dxc5 {[%clk 0:01:56]}  Na4 {[%clk 0:01:49]} 15. b4 {[%clk 0:01:40]}  e4 {[%clk 0:01:42]} 16. Nd4 {[%clk 0:01:38]}  Nc3 {[%clk 0:01:37]} 17. Kd2 {[%clk 0:01:33]}  Ncd5 {[%clk 0:01:31]} 18. Nxd5 {[%clk 0:01:31]}  Nxd5 {[%clk 0:01:32]} 19. a3 {[%clk 0:01:28]}  Be6 {[%clk 0:01:32]} 20. Rhc1 {[%clk 0:01:11]}  Rbd8 {[%clk 0:01:28]} 21. b5 {[%clk 0:00:43]}  Bc8 {[%clk 0:01:10]} 22. c6 {[%clk 0:00:37]}  bxc6 {[%clk 0:01:09]} 23. bxc6 {[%clk 0:00:37]}  f5 {[%clk 0:01:03]} 24. Rc5 {[%clk 0:00:32]}  f4 {[%clk 0:01:00]} 25. Rxd5 {[%clk 0:00:27]}  Rxd5 {[%clk 0:00:51]} 26. Bc4 {[%clk 0:00:27]}  Be6 {[%clk 0:00:51]} 27. Bxd5 {[%clk 0:00:22]}  Bxd5 {[%clk 0:00:51]} 28. exf4 {[%clk 0:00:19]}  Rxf4 {[%clk 0:00:48]} 29. Ke3 {[%clk 0:00:19]}  Rf8 {[%clk 0:00:46]} 30. Rc1 {[%clk 0:00:19]}  Kf7 {[%clk 0:00:36]} 31. c7 {[%clk 0:00:19]}  Bb7 {[%clk 0:00:36]} 32. Nb5 {[%clk 0:00:18]}  Ke7 {[%clk 0:00:31]} 33. Nxa7 {[%clk 0:00:18]}  Bc8 {[%clk 0:00:31]} 34. Nxc8+ {[%clk 0:00:17]}  Rxc8 {[%clk 0:00:32]} 35. Kxe4 {[%clk 0:00:17]}  Kd7 {[%clk 0:00:31]} 36. f4 {[%clk 0:00:15]}  Re8+ {[%clk 0:00:30]} 37. Kf3 {[%clk 0:00:15]}  Kc8 {[%clk 0:00:31]} 38. Rc3 {[%clk 0:00:14]}  Re1 {[%clk 0:00:28]} 39. g4 {[%clk 0:00:14]}  Re6 {[%clk 0:00:20]} 40. f5 {[%clk 0:00:14]}  Ra6 {[%clk 0:00:17]} 41. Kf4 {[%clk 0:00:14]}  h6 {[%clk 0:00:16]} 42. h4 {[%clk 0:00:13]}  Ra4+ {[%clk 0:00:15]} 43. Kf3 {[%clk 0:00:13]}  Rd4 {[%clk 0:00:14]} 44. Kg3 {[%clk 0:00:13]}  Ra4 {[%clk 0:00:13]} 45. g5 {[%clk 0:00:14]}  h5 {[%clk 0:00:12]} 46. f6 {[%clk 0:00:12]}  Rg4+ {[%clk 0:00:12]} 47. Kf3 {[%clk 0:00:09]}  gxf6 {[%clk 0:00:12]} 48. gxf6 {[%clk 0:00:10]}  Rg1 {[%clk 0:00:12]} 49. Ke4 {[%clk 0:00:09]}  Rf1 {[%clk 0:00:03]} 50. Rf3 {[%clk 0:00:08]}  Re1+ {[%clk 0:00:02]} 51. Kf5 {[%clk 0:00:09]} 1-0


[Site "https://www.chess.com"]

[Event "Titled Tuesday Blitz September 27 Early 2022"]
[White "Lauridsen, Jesper Morch"]
[Black "Zenin, Dmitry"]
[WhiteFideId "1401890"]
[BlackFideId "4127897"]
[WhiteElo "2268"]
[BlackElo "2215"]
[Result "1/2-1/2"]
[Round "11"]
[TimeControl "180+1"]
[Date "2022.09.27"]
[WhiteClock "0:00:48"]
[BlackClock "0:01:22"]

1. e4 {[%clk 0:03:00]}  e5 {[%clk 0:02:59]} 2. Nf3 {[%clk 0:03:00]}  Nc6 {[%clk 0:02:59]} 3. Bb5 {[%clk 0:02:59]}  a6 {[%clk 0:02:59]} 4. Bxc6 {[%clk 0:02:59]}  dxc6 {[%clk 0:02:59]} 5. O-O {[%clk 0:02:59]}  f6 {[%clk 0:02:58]} 6. d4 {[%clk 0:02:59]}  exd4 {[%clk 0:02:58]} 7. Nxd4 {[%clk 0:02:59]}  c5 {[%clk 0:02:58]} 8. Ne2 {[%clk 0:03:00]}  Qxd1 {[%clk 0:02:57]} 9. Rxd1 {[%clk 0:03:00]}  Bg4 {[%clk 0:02:56]} 10. f3 {[%clk 0:03:00]}  Be6 {[%clk 0:02:56]} 11. Nf4 {[%clk 0:02:59]}  Bf7 {[%clk 0:02:53]} 12. Nd5 {[%clk 0:02:49]}  O-O-O {[%clk 0:02:35]} 13. Bf4 {[%clk 0:02:40]}  Bd6 {[%clk 0:02:30]} 14. Bxd6 {[%clk 0:02:27]}  cxd6 {[%clk 0:02:29]} 15. Nbc3 {[%clk 0:02:15]}  b5 {[%clk 0:02:27]} 16. Rd2 {[%clk 0:02:12]}  b4 {[%clk 0:02:20]} 17. Na4 {[%clk 0:02:08]}  Kb7 {[%clk 0:02:19]} 18. Rad1 {[%clk 0:02:01]}  Kc6 {[%clk 0:02:08]} 19. c3 {[%clk 0:01:48]}  a5 {[%clk 0:02:05]} 20. a3 {[%clk 0:01:31]}  bxa3 {[%clk 0:02:01]} 21. bxa3 {[%clk 0:01:31]}  Bxd5 {[%clk 0:01:59]} 22. exd5+ {[%clk 0:01:28]}  Kb5 {[%clk 0:01:59]} 23. Nb2 {[%clk 0:01:21]}  Ne7 {[%clk 0:01:48]} 24. Re1 {[%clk 0:01:18]}  Ng6 {[%clk 0:01:46]} 25. a4+ {[%clk 0:01:12]}  Ka6 {[%clk 0:01:44]} 26. Nc4 {[%clk 0:01:11]}  Ne5 {[%clk 0:01:44]} 27. Nxe5 {[%clk 0:01:08]}  fxe5 {[%clk 0:01:44]} 28. Rb2 {[%clk 0:01:02]}  Rb8 {[%clk 0:01:43]} 29. Reb1 {[%clk 0:01:01]}  Rxb2 {[%clk 0:01:39]} 30. Rxb2 {[%clk 0:01:01]}  Rf8 {[%clk 0:01:39]} 31. Kf2 {[%clk 0:00:58]}  Rf4 {[%clk 0:01:39]} 32. Ra2 {[%clk 0:00:53]}  Rf7 {[%clk 0:01:23]} 33. Rb2 {[%clk 0:00:48]}  Rf4 {[%clk 0:01:23]} 34. Ra2 {[%clk 0:00:48]}  Rf7 {[%clk 0:01:22]} 35. Rb2 {[%clk 0:00:48]}  Rf4 {[%clk 0:01:22]} 1/2-1/2


[Site "https://www.chess.com"]

[Event "Titled Tuesday Blitz September 27 Early 2022"]
[White "Le, Tuan Minh"]
[Black "Sipila, Vilka"]
[WhiteFideId "12401153"]
[BlackFideId "505455"]
[WhiteElo "2530"]
[BlackElo "2329"]
[Result "1-0"]
[Round "11"]
[TimeControl "180+1"]
[Date "2022.09.27"]
[WhiteClock "0:02:46"]
[BlackClock "0:02:43"]

1. d4 {[%clk 0:03:00]}  f5 {[%clk 0:03:00]} 2. e4 {[%clk 0:02:54]}  fxe4 {[%clk 0:02:59]} 3. Nc3 {[%clk 0:02:55]}  Nf6 {[%clk 0:02:59]} 4. Bg5 {[%clk 0:02:56]}  Nc6 {[%clk 0:03:00]} 5. d5 {[%clk 0:02:56]}  Ne5 {[%clk 0:03:00]} 6. Qd4 {[%clk 0:02:56]}  Nf7 {[%clk 0:03:00]} 7. Bxf6 {[%clk 0:02:55]}  exf6 {[%clk 0:03:01]} 8. O-O-O {[%clk 0:02:56]}  f5 {[%clk 0:02:59]} 9. f3 {[%clk 0:02:56]}  Qg5+ {[%clk 0:02:56]} 10. Kb1 {[%clk 0:02:55]}  Bd6 {[%clk 0:02:50]} 11. fxe4 {[%clk 0:02:54]}  Be5 {[%clk 0:02:50]} 12. Qc4 {[%clk 0:02:53]}  Nd6 {[%clk 0:02:44]} 13. Qxc7 {[%clk 0:02:46]}  Nb5 {[%clk 0:02:43]} 14. Qxe5+ {[%clk 0:02:46]} 1-0


[Site "https://www.chess.com"]

[Event "Titled Tuesday Blitz September 27 Early 2022"]
[White "Mirzoev, Azer"]
[Black "Mickiewicz, Piotr"]
[WhiteFideId "13400304"]
[BlackFideId "1114891"]
[WhiteElo "2525"]
[BlackElo "2246"]
[Result "1-0"]
[Round "11"]
[TimeControl "180+1"]
[Date "2022.09.27"]
[WhiteClock "0:00:25"]
[BlackClock "0:00:18"]

1. Nf3 {[%clk 0:02:58]}  Nf6 {[%clk 0:02:58]} 2. c4 {[%clk 0:02:58]}  e6 {[%clk 0:02:58]} 3. Nc3 {[%clk 0:02:58]}  c5 {[%clk 0:02:55]} 4. e3 {[%clk 0:02:58]}  Be7 {[%clk 0:02:50]} 5. d4 {[%clk 0:02:57]}  cxd4 {[%clk 0:02:50]} 6. exd4 {[%clk 0:02:55]}  d5 {[%clk 0:02:49]} 7. a3 {[%clk 0:02:53]}  O-O {[%clk 0:02:46]} 8. c5 {[%clk 0:02:51]}  Nc6 {[%clk 0:02:38]} 9. b4 {[%clk 0:02:50]}  Ne4 {[%clk 0:02:38]} 10. Bb2 {[%clk 0:02:50]}  f5 {[%clk 0:02:36]} 11. Be2 {[%clk 0:02:42]}  Bf6 {[%clk 0:02:34]} 12. O-O {[%clk 0:02:42]}  Bd7 {[%clk 0:02:31]} 13. b5 {[%clk 0:02:33]}  Ne7 {[%clk 0:02:25]} 14. a4 {[%clk 0:02:32]}  g5 {[%clk 0:02:20]} 15. Ne1 {[%clk 0:02:28]}  Ng6 {[%clk 0:02:10]} 16. Nc2 {[%clk 0:02:19]}  Be8 {[%clk 0:01:48]} 17. f3 {[%clk 0:02:11]}  Nxc3 {[%clk 0:01:46]} 18. Bxc3 {[%clk 0:02:12]}  Rc8 {[%clk 0:01:37]} 19. Qd2 {[%clk 0:02:04]}  Nf4 {[%clk 0:01:34]} 20. Rfe1 {[%clk 0:02:04]}  Bg6 {[%clk 0:01:30]} 21. Bf1 {[%clk 0:02:02]}  Qd7 {[%clk 0:01:18]} 22. Rac1 {[%clk 0:01:56]}  Nh5 {[%clk 0:01:16]} 23. Nb4 {[%clk 0:01:53]}  Ng7 {[%clk 0:01:16]} 24. c6 {[%clk 0:01:51]}  bxc6 {[%clk 0:01:16]} 25. Nxc6 {[%clk 0:01:51]}  f4 {[%clk 0:01:10]} 26. Bb4 {[%clk 0:01:46]}  Rfe8 {[%clk 0:01:08]} 27. Bc5 {[%clk 0:01:46]}  Nf5 {[%clk 0:01:01]} 28. Qa5 {[%clk 0:01:37]}  Rc7 {[%clk 0:00:51]} 29. Qd2 {[%clk 0:00:44]}  Rec8 {[%clk 0:00:46]} 30. Ne5 {[%clk 0:00:42]}  Bxe5 {[%clk 0:00:45]} 31. Rxe5 {[%clk 0:00:41]}  h6 {[%clk 0:00:45]} 32. Rce1 {[%clk 0:00:39]}  Kf7 {[%clk 0:00:28]} 33. Bd3 {[%clk 0:00:30]}  Nh4 {[%clk 0:00:26]} 34. h3 {[%clk 0:00:27]}  Bxd3 {[%clk 0:00:25]} 35. Qxd3 {[%clk 0:00:27]}  Ng6 {[%clk 0:00:26]} 36. Rxe6 {[%clk 0:00:27]}  Nh4 {[%clk 0:00:18]} 37. Qh7# {[%clk 0:00:25]} 1-0


[Site "https://www.chess.com"]

[Event "Titled Tuesday Blitz September 27 Early 2022"]
[White "Miszler, Levente"]
[Black "Bilych, Olexiy"]
[WhiteFideId "763276"]
[BlackFideId "14156504"]
[WhiteElo "1966"]
[BlackElo "2157"]
[Result "0-1"]
[Round "11"]
[TimeControl "180+1"]
[Date "2022.09.27"]
[WhiteClock "0:00:07"]
[BlackClock "0:01:18"]

1. e4 {[%clk 0:03:00]}  e5 {[%clk 0:02:59]} 2. Nf3 {[%clk 0:03:00]}  Nc6 {[%clk 0:02:59]} 3. Bc4 {[%clk 0:03:00]}  Bc5 {[%clk 0:02:59]} 4. c3 {[%clk 0:02:57]}  Nf6 {[%clk 0:02:58]} 5. d4 {[%clk 0:02:55]}  exd4 {[%clk 0:02:59]} 6. b4 {[%clk 0:02:55]}  Bb6 {[%clk 0:02:52]} 7. e5 {[%clk 0:02:53]}  Ne4 {[%clk 0:02:44]} 8. Bd5 {[%clk 0:02:12]}  Nxc3 {[%clk 0:02:44]} 9. Nxc3 {[%clk 0:02:10]}  dxc3 {[%clk 0:02:45]} 10. b5 {[%clk 0:02:09]}  Ne7 {[%clk 0:02:44]} 11. Bg5 {[%clk 0:01:54]}  h6 {[%clk 0:02:44]} 12. Bh4 {[%clk 0:01:52]}  g5 {[%clk 0:02:44]} 13. Nxg5 {[%clk 0:01:46]}  hxg5 {[%clk 0:02:45]} 14. Bxg5 {[%clk 0:01:47]}  d6 {[%clk 0:02:44]} 15. Qf3 {[%clk 0:01:26]}  Be6 {[%clk 0:02:42]} 16. Bxb7 {[%clk 0:01:25]}  d5 {[%clk 0:02:20]} 17. Bc6+ {[%clk 0:01:00]}  Nxc6 {[%clk 0:02:20]} 18. Bxd8 {[%clk 0:01:00]}  Nxd8 {[%clk 0:02:21]} 19. Qxc3 {[%clk 0:01:00]}  c5 {[%clk 0:02:13]} 20. bxc6 {[%clk 0:00:59]}  Rc8 {[%clk 0:02:14]} 21. O-O {[%clk 0:00:55]}  Nxc6 {[%clk 0:02:13]} 22. Rac1 {[%clk 0:00:47]}  Kd7 {[%clk 0:02:07]} 23. Rfd1 {[%clk 0:00:42]}  Nd4 {[%clk 0:01:50]} 24. Qd3 {[%clk 0:00:25]}  Bg4 {[%clk 0:01:44]} 25. Rxc8 {[%clk 0:00:19]}  Rxc8 {[%clk 0:01:44]} 26. Re1 {[%clk 0:00:20]}  Bf5 {[%clk 0:01:33]} 27. Qa6 {[%clk 0:00:18]}  Be6 {[%clk 0:01:26]} 28. Qa4+ {[%clk 0:00:16]}  Nc6 {[%clk 0:01:25]} 29. Rc1 {[%clk 0:00:15]}  d4 {[%clk 0:01:26]} 30. h3 {[%clk 0:00:11]}  Bd5 {[%clk 0:01:26]} 31. Qb5 {[%clk 0:00:09]}  Ke6 {[%clk 0:01:26]} 32. Qe2 {[%clk 0:00:08]}  Rg8 {[%clk 0:01:19]} 33. Kh2 {[%clk 0:00:07]}  Rxg2+ {[%clk 0:01:18]} 34. Kh1 {[%clk 0:00:07]}  Rxf2+ {[%clk 0:01:18]} 0-1


[Site "https://www.chess.com"]